Cogmind - Beta 13 @@@ ROGUE MODE // 2024.03.24 @ 07:27:03 Player: f_ Result: Destroyed by G-47 Trooper with Particle Gun Performance ------------- Evolutions (2) 1000 Regions Visited (6) 1200 Robots Destroyed (65) 325 Value Destroyed (2121) 2121 Prototype IDs (10) 200 Alien Tech Used (0) 0 Bonus (643) 643 TOTAL SCORE: 5489 Bonus ------- High Alert Combat Kills 23 Follower Combat Kills 126 Entered Garrisons 200 Aligned with FarCom 300 Friendly Fire -6 Cogmind --------- Core Integrity 0/550 Matter 244/300 Energy 150/150 System Corruption 16% Temperature Cool (9) Movement Rolling (115) Ox1 Location -8/Garrison Parts ------- > --- POWER (1) -------- Micro Nuclear Core > --- PROPULSION (2) --- Compact Wheel > --- UTILITY (6) ------ Improved Heat Sink Trap Scanner Improved Targeting Computer Advanced Targeting Computer Propulsion Shielding (fused) Hacking Suite > --- WEAPON (2) ------- AWS/Thermal > --- INVENTORY (5) ---- Ion Cannon Makeshift Shrapnel Gun Datajack Remote Datajack Hammer Peak State ------------ > --- POWER ------------ Light Angular Momentum Engine > --- PROPULSION ------- Wheel Wheel > --- UTILITY ---------- Humpback Modified TNC Light Armor Plating Improved Light Armor Plating Hardlight Generator > --- WEAPON ----------- Heavy Particle Gun Guided Plasma Cannon > --- INVENTORY -------- Heavy Ion Engine Heavy Ion Engine Nuclear Core Light Nuclear Core Armored Treads Armored Treads Compact Wheel Improved Heat Sink Improved Heat Sink Trap Scanner Improved Sensor Array Improved Sensor Array Improved Signal Interpreter Improved Signal Interpreter Improved Targeting Computer Advanced Targeting Computer Propulsion Shielding Improved Light Armor Plating Hardlight Generator Shield Generator Shield Generator Shield Generator Shield Generator Heavy EM Shotgun Heavy EM Shotgun Heavy EM Shotgun Heavy Particle Gun Heavy Particle Gun AWS/Thermal Ion Cannon Makeshift Shrapnel Gun Datajack Hammer [Rating: 44] Favorites ----------- Power Light Angular Momentum Engine Engine Light Angular Momentum Engine Power Core Light Nuclear Core Propulsion Wheel Wheel Wheel Hover Unit Aerolev Unit Utility Modified TNC Device Hardlight Generator Storage Humpback Processor Modified TNC Hackware Hacking Suite Protection Propulsion Shielding Weapon Heavy Assault Rifle Energy Gun Heavy EM Shotgun Energy Cannon Ion Cannon Ballistic Gun Heavy Assault Rifle Impact Weapon Hammer Special Melee Weapon Datajack Build | -11 -10 -10 -10 -9 -8 -8 ------- Run | Yrd Mat Min Exi Min Mat Gar Slots Evolved 4 | . . . . . 4 . Power . | . . . . . . . Propulsion . | . . . . . . . Utility 4 | . . . . . 4 . Weapon . | . . . . . . . Parts Attached 90 | 7 4 6 5 2 45 21 Power 10 | 1 1 1 . 1 3 3 Engine 5 | 1 1 . . 1 2 . Core 5 | . . 1 . . 1 3 Reactor . | . . . . . . . Propulsion 12 | 2 . . . 1 8 1 Treads . | . . . . . . . Leg . | . . . . . . . Wheel 11 | 2 . . . 1 7 1 Hover 1 | . . . . . 1 . Flight . | . . . . . . . Utility 31 | 1 3 2 1 . 17 7 Device 11 | . 1 . . . 6 4 Storage 5 | 1 2 . . . 2 . Processor 4 | . . 1 1 . . 2 Hackware 1 | . . . . . . 1 Protection 10 | . . 1 . . 9 . Artifact . | . . . . . . . Weapon 37 | 3 . 3 4 . 17 10 Energy Gun 16 | 2 . . 1 . 8 5 Energy Cannon 8 | . . . 1 . 4 3 Ballistic Gun 9 | 1 . 2 2 . 2 2 Ballistic Cannon . | . . . . . . . Launcher . | . . . . . . . Special Weapon . | . . . . . . . Impact Weapon 3 | . . . . . 3 . Slashing Weapon . | . . . . . . . Piercing Weapon . | . . . . . . . Special Melee Weapon 1 | . . 1 . . . . Unidentified Prototypes 8 | . 1 . 3 . 4 . Parts Lost 18 | . . . . . 8 10 Power 2 | . . . . . . 2 Propulsion 4 | . . . . . 2 2 Utility 9 | . . . . . 6 3 Weapon 3 | . . . . . . 3 Highest Loss Streak 5 | . . . . . 4 5 To Critical Strikes . | . . . . . . . Average Slot Usage (%) 90 | . 96 100 98 100 88 73 Engine 6 | . 14 8 . 7 8 1 Core 3 | . . 5 14 6 . 6 Wheel 20 | . 28 28 28 28 17 10 Device 8 | . 10 7 . . 10 14 Storage 10 | . 14 14 14 14 8 3 Processor 10 | . . 4 14 14 9 15 Protection 8 | . . 1 . . 15 10 Energy Gun 7 | . 28 7 . . 10 6 Energy Cannon 1 | . . . . . 3 1 Ballistic Gun 9 | . . 14 19 28 3 1 Special Melee Weapon 1 | . . 7 6 . . . Naked Turns . | . . . . . . . Heaviest Build 233 | 14 93 95 91 95 233 221 Greatest Support 32 | 26 26 26 26 26 32 32 Greatest Overweight (x) 13 | . 3 3 3 3 13 13 Average Overweight (x) 4 | . 1 3 3 3 9 3 Largest Inventory Capacity 35 | 8 25 25 25 25 35 35 Average Capacity 26 | 7 13 25 25 25 34 16 Most Carried 35 | 3 16 21 25 25 35 31 Average Carried 22 | 1 6 18 21 24 30 13 Final Capacity 35 | 8 25 25 25 25 35 5 Final Carried 31 | 1 16 21 24 25 31 5 Class Distribution -------------------- 53% | Mutant 38% | Hauler-Mutant 3% | Hauler-Skirmisher Dominant Class ---------------- Mutant | -10/Materials Mutant | -10/Mines Mutant | -10/Exiles Mutant | -9/Mines Hauler-Mutant | -8/Materials Mutant | -8/Garrison Resources | -11 -10 -10 -10 -9 -8 -8 ----------- Run | Yrd Mat Min Exi Min Mat Gar Matter Collected 1293 | 134 176 96 . 124 537 226 Remotely . | . . . . . . . Salvage Created 2996 | . 246 53 . 118 1757 822 Parts 138 | . 19 2 . 4 80 33 Haulers Intercepted 4 | . . . . . 4 . Recyclers Shooed 4 | . . 1 . 1 2 . Parts Field Recycled . | . . . . . . . Retrieved Matter . | . . . . . . . Parts Self-Destructed . | . . . . . . . Prevented . | . . . . . . . Kills | -11 -10 -10 -10 -9 -8 -8 ------- Run | Yrd Mat Min Exi Min Mat Gar Combat Hostiles Destroyed 42 | . 3 3 . 1 18 17 Melee 1 | . . . . . 1 . Guns 35 | . 3 3 . 1 11 17 Cannons 5 | . . . . . 5 . Classes Destroyed 12 | . 5 1 . 1 3 2 Worker 6 | . 2 . . . 4 . Builder 2 | . 1 . . . 1 . Hauler 4 | . . . . . 4 . Recycler 6 | . . . . 1 5 . Operator 2 | . 1 . . . 1 . Watcher 5 | . 2 . . . 3 . Grunt 26 | . 3 1 . 1 12 9 Brawler 1 | . . . . . . 1 Sentry 5 | . . . . . 5 . Hunter 1 | . . . . . 1 . Programmer 7 | . . . . . . 7 Assembled 2 | . . 2 . . . . Best Kill Streak 6 | . 6 3 . 1 6 6 Combat Bots Only 6 | . 2 3 . 1 5 6 Max Kills in Single Turn 2 | . 1 1 . 1 2 1 Gunslinging . | . . . . . . . Exploded . | . . . . . . . Melee 1 | . . . . . 1 . Uniques/NPCs Destroyed . | . . . . . . . Combat | -11 -10 -10 -10 -9 -8 -8 -------- Run | Yrd Mat Min Exi Min Mat Gar Hostile Shots Fired 288 | . 10 8 . . 138 132 Missed 84 | . 5 4 . . 36 39 Damage Taken 2737 | . 55 49 . 16 1295 1322 Core 589 | . 22 11 . . 178 378 Absorbed by Shields 424 | . . . . . 346 78 Redirected to Shielding 43 | . . . . . 14 29 Regen/Repaired (Parts) 167 | . . . . . 167 . Core Remaining (%) 93 | 100 . . . 86 . . Volleys Fired 148 | . 22 12 . 9 92 13 Largest 2 | . 2 2 . 2 2 1 Hottest 115 | . 100 73 . 46 115 60 Shots Fired 316 | . 44 15 . 18 158 81 Gun 269 | . 44 15 . 18 119 73 Cannon 47 | . . . . . 39 8 Launcher . | . . . . . . . Special . | . . . . . . . Kinetic 66 | . . 12 . 18 31 5 Thermal 199 | . 44 3 . . 76 76 Explosive . | . . . . . . . Electromagnetic 51 | . . . . . 51 . Robot Hit Streak 20 | . 7 5 . 3 19 20 Robot Miss Streak 8 | . 3 1 . 5 8 3 Penetration Max . | . . . . . . . Secondary Targets . | . . . . . . . Autonomous 68 | . . . . . . 68 Shots Hit Robots 227 | . 25 12 . 8 117 65 Core Hits 115 | . 13 6 . 3 66 27 Critical Kills . | . . . . . . . Critical Parts Destroyed 2 | . . . . 2 . . Critical Strikes 6 | . 3 1 . 2 . . Burn 4 | . 3 1 . . . . Destroy 2 | . . . . 2 . . Melee Attacks 29 | . . . . . 19 10 Impact 29 | . . . . . 19 10 Slashing . | . . . . . . . Piercing . | . . . . . . . Sneak Attacks . | . . . . . . . Combat Hostiles . | . . . . . . . Follow-up Attacks . | . . . . . . . Damage Inflicted 5255 | . 337 172 . 111 2648 1987 Guns 4402 | . 337 172 . 111 1795 1987 Cannons 507 | . . . . . 507 . Explosions 191 | . . . . . 191 . Melee 151 | . . . . . 151 . Ramming 4 | . . . . . 4 . Kinetic 620 | . . 148 . 111 318 43 Thermal 3552 | . 337 24 . . 1247 1944 Explosive . | . . . . . . . Electromagnetic 928 | . . . . . 928 . Impact 151 | . . . . . 151 . Slashing . | . . . . . . . Piercing . | . . . . . . . Highest Corruption 16 | . . . . . . 16 Average Corruption 14 | . . . . . . 14 Corruption Purged . | . . . . . . . Corruption Blocked . | . . . . . . . Effects 34 | . . . . . . 34 Message Errors 9 | . . . . . . 9 Matter Fused 9 | . . . . . . 9 Heat Flow Errors 2 | . . . . . . 2 Energy Discharges 5 | . . . . . . 5 Parts Fused 1 | . . . . . . 1 Data Loss (minor) 5 | . . . . . . 5 Data Loss (major) 1 | . . . . . . 1 Misdirections 2 | . . . . . . 2 Overload Shots . | . . . . . . . Overflow Damage 9 | . . . . . 9 . Projectiles . | . . . . . . . Explosions 6 | . . . . . 6 . Melee 3 | . . . . . 3 . Knockbacks . | . . . . . . . Impact . | . . . . . . . Kinetic . | . . . . . . . Secondary . | . . . . . . . Self-Inflicted Damage 71 | . . . . . 71 . Shots 2 | . . . . . 2 . Rammed 1 | . . . . . 1 . Targets Rammed 1 | . . . . . 1 . Kicked . | . . . . . . . Crushed . | . . . . . . . Highest Temperature 389 | . 204 30 . . 389 193 Average Temperature 82 | . 87 14 . . 84 67 Received Heat Transfer 683 | . 30 . . 9 488 156 Effects 5 | . . . . . 5 . Interference 3 | . . . . . 3 . Short Circuit 1 | . . . . . 1 . Damage (minor) 1 | . . . . . 1 . Siege Activations . | . . . . . . . Robots Corrupted . | . . . . . . . Combat Hostiles . | . . . . . . . Parts Fried 4 | . . . . . 4 . Impact Corruptions 1 | . . . . . 1 . Robots Melted . | . . . . . . . Combat Hostiles . | . . . . . . . Parts Melted 12 | . 1 . . . 2 9 Heat Transferred 5565 | . 1221 148 . . 2137 2059 Parts Sabotaged . | . . . . . . . Parts Stolen . | . . . . . . . Parts Stripped . | . . . . . . . Power Chain Reactions 4 | . . . . . 4 . Alert | -11 -10 -10 -10 -9 -8 -8 ------- Run | Yrd Mat Min Exi Min Mat Gar Peak Influence 457 | . 122 141 . 42 188 457 Initial 92 | . . 47 . . . 92 Average 97 | . 88 78 . 2 78 243 Maximum Alert Level 2 | . . . . . . 2 Low Security (%) 88 | 100 100 100 . 100 100 39 Level 1 9 | . . . . . . 47 Level 2 2 | . . . . . . 12 Level 3 . | . . . . . . . Level 4 . | . . . . . . . Level 5 . | . . . . . . . High Security . | . . . . . . . Max Security . | . . . . . . . Squads Dispatched 7 | . 2 . . . 5 . Investigation 4 | . 1 . . . 3 . Extermination . | . . . . . . . Reinforcement 3 | . 1 . . . 2 . Assault . | . . . . . . . Garrison . | . . . . . . . Intercept . | . . . . . . . Searches Triggered . | . . . . . . . Construction Impeded 1 | . . . . . 1 . Haulers Reinforced . | . . . . . . . Active Scanning Responses . | . . . . . . . Cargo Convoy Interrupts . | . . . . . . . Stealth | -11 -10 -10 -10 -9 -8 -8 --------- Run | Yrd Mat Min Exi Min Mat Gar Distress Signals 4 | . 1 . . . 3 . Communications Jammed . | . . . . . . . Distress Signals . | . . . . . . . Times Spotted 61 | . 6 9 . 3 25 18 Peak Tracking Total 6 | . 4 3 . 2 4 6 Tactical Retreats 1 | . . . . . . 1 Traps | -11 -10 -10 -10 -9 -8 -8 ------- Run | Yrd Mat Min Exi Min Mat Gar Traps Triggered 6 | . 1 . . . 1 4 Indirectly . | . . . . . . . Trap Hack Attempts . | . . . . . . . Triggered . | . . . . . . . Disarmed . | . . . . . . . Reprogrammed . | . . . . . . . Reused . | . . . . . . . Traps Extracted . | . . . . . . . Installed . | . . . . . . . Triggered . | . . . . . . . Machines | -11 -10 -10 -10 -9 -8 -8 ---------- Run | Yrd Mat Min Exi Min Mat Gar Machines Disabled 1 | . . . . . 1 . Max in Single Turn 1 | . . . . . 1 . Garrison Relay 2 | . . . . . . 2 Machines Repaired . | . . . . . . . Machines Dismantled . | . . . . . . . Machines Sabotaged . | . . . . . . . Overloaded Fab Kills . | . . . . . . . Hacking | -11 -10 -10 -10 -9 -8 -8 --------- Run | Yrd Mat Min Exi Min Mat Gar Machines Accessed 9 | . 2 . . . 5 2 Terminals 6 | . 2 . . . 2 2 Fabricators . | . . . . . . . Repair Stations 1 | . . . . . 1 . Recycling Units . | . . . . . . . Scanalyzers 1 | . . . . . 1 . Garrison Access 1 | . . . . . 1 . Total Hacks 19 | . 5 . . . 12 2 Successful 11 | . 2 . . . 8 1 Failed 8 | . 3 . . . 4 1 Catastrophic . | . . . . . . . Database Lockouts . | . . . . . . . Manual 1 | . . . 1 . . . Terminals 12 | . 5 . . . 5 2 Fabricators . | . . . . . . . Repair Stations 2 | . . . . . 2 . Recycling Units . | . . . . . . . Scanalyzers 3 | . . . . . 3 . Garrison Access 2 | . . . . . 2 . Terminal Hacks 6 | . 2 . . . 3 1 Prototype ID Bank 1 | . . . . . 1 . Emergency Access Points 1 | . . . . . . 1 Alert Level 3 | . 1 . . . 2 . Registered Components 1 | . 1 . . . . . Fabricator Hacks . | . . . . . . . Repair Station Hacks 2 | . . . . . 2 . Scan Component 1 | . . . . . 1 . Repair 1 | . . . . . 1 . Recycling Unit Hacks . | . . . . . . . Scanalyzer 2 | . . . . . 2 . Insert Component 1 | . . . . . 1 . Analyze 1 | . . . . . 1 . Garrison Access Hacks 1 | . . . . . 1 . Unlock Access 1 | . . . . . 1 . Unauthorized Hacks . | . . . . . . . Terminals . | . . . . . . . Fabricators . | . . . . . . . Repair Stations . | . . . . . . . Recycling Units . | . . . . . . . Scanalyzers . | . . . . . . . Garrison Access . | . . . . . . . Data Cores Recovered . | . . . . . . . Used . | . . . . . . . Hacking Detections 7 | . 2 . . . 3 2 Full Trace Events 1 | . . . . . 1 . Feedback Events . | . . . . . . . Feedback Blocked . | . . . . . . . Robot Schematics Acquired . | . . . . . . . Robots Built . | . . . . . . . Authchips . | . . . . . . . Time . | . . . . . . . Total Robot Build Rating . | . . . . . . . Part Schematics Acquired 1 | . . . . . 1 . Parts Built . | . . . . . . . Authchips . | . . . . . . . Time . | . . . . . . . Total Part Build Rating . | . . . . . . . Parts Repaired 1 | . . . . . 1 . Time 26 | . . . . . 26 . Parts Recycled . | . . . . . . . Recycled Matter . | . . . . . . . Retrieved Matter . | . . . . . . . Retrieved Components . | . . . . . . . Parts Scanalyzed 1 | . . . . . 1 . Part Schematics Acquired 1 | . . . . . 1 . Parts Damaged . | . . . . . . . Bothacking | -11 -10 -10 -10 -9 -8 -8 ------------ Run | Yrd Mat Min Exi Min Mat Gar Used RIF Installer . | . . . . . . . Robots Hacked . | . . . . . . . Non-combat . | . . . . . . . Combat . | . . . . . . . Robot Hacks Applied . | . . . . . . . Relay Couplers Released 10 | . . . . . . 10 Machine Destruction 10 | . . . . . . 10 Fabnet Peak Effective % . | . . . . . . . Robots Rewired . | . . . . . . . Allies Hacked . | . . . . . . . Hacks Repelled . | . . . . . . . Allies | -11 -10 -10 -10 -9 -8 -8 -------- Run | Yrd Mat Min Exi Min Mat Gar Total Allies 4 | . . 4 . . . . Largest Group 3 | . . 3 2 1 1 . Highest-Rated Group 47 | . . 47 47 16 16 . Highest-Rated Ally 31 | . . 31 31 16 16 . Total Orders 5 | . . 3 . . 2 . ROAM 1 | . . . . . 1 . FOLLOW 1 | . . . . . 1 . GUARD 2 | . . 2 . . . . AID 1 | . . 1 . . . . Ally Attacks 22 | . . 9 . 4 9 . Total Damage 202 | . . 77 . 49 76 . Kills 7 | . . 5 . 1 1 . Allies Corrupted . | . . . . . . . Allies Melted . | . . . . . . . Intel | -11 -10 -10 -10 -9 -8 -8 ------- Run | Yrd Mat Min Exi Min Mat Gar Robot Analysis Total . | . . . . . . . Derelict Logs Recovered 1 | . . 1 . . . . Drone Launches . | . . . . . . . Drone Recoveries . | . . . . . . . Exploration | -11 -10 -10 -10 -9 -8 -8 ------------- Run | Yrd Mat Min Exi Min Mat Gar Turns Passed 5386 | 44 337 580 410 921 2111 983 Spaces Moved 2619 | 36 217 338 295 491 678 564 Core 6 | 6 . . . . . . Treads . | . . . . . . . Legs . | . . . . . . . Wheels 2613 | 30 217 338 295 491 678 564 Hover . | . . . . . . . Flight . | . . . . . . . Fastest Speed 50 | 50 90 135 135 135 190 100 Average Speed 157 | 83 105 135 135 135 224 147 Slowest Speed 295 | 90 135 135 135 135 295 295 Overloaded Moves . | . . . . . . . Propulsion Burnouts . | . . . . . . . Robots Hopped . | . . . . . . . Cave-ins Triggered . | . . . . . . . Exploration Rate (%) 48 | 3 36 63 61 88 36 51 Regions Visited 6 Branch Regions 3 Pre-discovered Areas 1 | . . . . 1 . . Known Exits Taken 3 | . . 1 1 . 1 . Unknown Exits Taken 3 | 1 1 . . 1 . . Scrap Searched 1 | . . . . 1 . . Spaces Dug 6 | . . . . . 5 1 Terrain Destroyed 19 | . . . . . 18 1 Melee 5 | . . . . . 4 1 Projectile 8 | . . . . . 8 . AOE 6 | . . . . . 6 . Terrain Rammed . | . . . . . . . Walls Destroyed . | . . . . . . . Machines Disabled . | . . . . . . . Actions | -11 -10 -10 -10 -9 -8 -8 --------- Run | Yrd Mat Min Exi Min Mat Gar Total 3591 | 49 284 444 309 731 1083 691 Wait 491 | . 13 84 . 225 138 31 Move 2614 | 35 216 337 294 490 678 564 Hop . | . . . . . . . Pick Up 117 | 7 22 5 3 3 68 9 Fast Attach 6 | . . . 2 . 1 3 Attach 41 | 6 1 . 3 . 16 15 Detach 12 | . . . 3 . . 9 Swap 43 | 1 3 6 . 2 28 3 Drop 65 | . 7 . 4 2 42 10 Fire 148 | . 22 12 . 9 92 13 Melee 29 | . . . . . 19 10 Ram 1 | . . . . . 1 . Kick . | . . . . . . . Crush . | . . . . . . . Escape Stasis 24 | . . . . . . 24 Rewire . | . . . . . . . Trap . | . . . . . . . Miscellaneous . | . . . . . . . Route ------- -11/Scrapyard -10/Materials (discovered 2 exits: *Mat / [*Min]) -10/Mines (discovered 3 exits: *Mat x2 / *Exi) -10/Exiles (discovered 2 exits: *Min x2) -9/Mines -8/Materials (discovered 2 exits: [*Fac] / Gar) -8/Garrison (discovered 1 exit: [*Mat]) History --------- Turn | Location | Event 25 | -11/Scrapyard | Discovered new exit (range 15) 45 | -11/Scrapyard | Entered Materials 156 | -10/Materials | Discovered new exit (range 13) 347 | -10/Materials | Discovered new exit (range 7) 353 | -10/Materials | Build established: Mutant 382 | -10/Materials | Entered Mines 418 | -10/Mines | Assisted by bots powering up and referring to "LRC-V3" 582 | -10/Mines | Found a hidden stash of uninstalled traps 641 | -10/Mines | Learned Materials garrison access intel 666 | -10/Mines | Assembled infested the area 673 | -10/Mines | Discovered new exit (range 7) 728 | -10/Mines | A weapon hastily lodged in a ceiling crevice suddenly fell to the ground 768 | -10/Mines | Identified exit to Materials 784 | -10/Mines | Escorted by a lone wolf Derelict 914 | -10/Mines | Discovered exit to Materials (range 5) 952 | -10/Mines | Deemed a non-threat by the Exiles lab entrance 952 | -10/Mines | Discovered new exit (range 5) 956 | -10/Mines | Identified exit to Exiles 962 | -10/Mines | Entered Exiles 962 | -10/Exiles | Accompanied by 2 allies 983 | -10/Exiles | Discovered new exit (range 15) 1012 | -10/Exiles | Identified exit to Mines 1041 | -10/Exiles | Met 8R-AWN 1058 | -10/Exiles | Met EX-HEX 1106 | -10/Exiles | Met EX-BIN 1124 | -10/Exiles | Aligned with FarCom system 1126 | -10/Exiles | Given EX-Vault access code 1157 | -10/Exiles | Opened EX-Vault 1165 | -10/Exiles | Found Prototype Energy Gun 1173 | -10/Exiles | Found Prototype Processor 1173 | -10/Exiles | Identified Modified TNC 1176 | -10/Exiles | Identified AWS/Thermal 1177 | -10/Exiles | Found Prototype Energy Cannon 1177 | -10/Exiles | Identified Gui. Plasma Cannon 1210 | -10/Exiles | Warned to stay clear of 0b10 Research branches 1249 | -10/Exiles | Met EX-DEC 1356 | -10/Exiles | Discovered exit to Mines (range 14) 1372 | -10/Exiles | Stole three prototypes: Modified TNC, AWS/Thermal, Gui. Plasma Cannon 1372 | -10/Exiles | Entered Mines 1372 | -9/Mines | Accompanied by 1 ally 1460 | -9/Mines | Met a Derelict bent on vengeance 2173 | -9/Mines | Discovered new exit (range 11) 2222 | -9/Mines | Learned location of Storage (-8) 2293 | -9/Mines | Entered Materials 2293 | -8/Materials | Accompanied by 1 ally 2293 | -8/Materials | Evolved 4 slots: Utility x4 2294 | -8/Materials | Loaded intel: 1 garrison access location 2594 | -8/Materials | Build established: Hauler-Mutant 3768 | -8/Materials | Lost 4 parts (1n3u) 4005 | -8/Materials | Repaired Humpback 4284 | -8/Materials | Discovered new exit (range 15) 4404 | -8/Materials | Identified exit to Garrison 4404 | -8/Materials | Entered Garrison 4526 | -8/Garrison | Garrison Relay disabled 4530 | -8/Garrison | Garrison Relay disabled 4540 | -8/Garrison | System corruption reached 10% 4543 | -8/Garrison | Core integrity fell below 50% 4560 | -8/Garrison | Core integrity fell below 20% 4583 | -8/Garrison | Lost 5 parts (1p2n1u1w) 4822 | -8/Garrison | Lost 5 parts (1p2u2w) 5074 | -8/Garrison | Build established: Mutant 5099 | -8/Garrison | Discovered new exit (range 8) 5122 | -8/Garrison | Triggered checkpoint 5282 | -8/Garrison | Triggered checkpoint 5387 | -8/Garrison | Destroyed by G-47 Trooper with Particle Gun Last Messages --------------- 05263_ System corrupted: Heat flow error (+160). 05282_ Beams of light sweep through the air. An alarm sounds. 05284_ ABF3O%8QWV0T7&CN%HBT%H9TUMT>O 05301_ System corrupted: Matter fused (-6). 05301_ Acquired Shield Generator. 05303_ Dropped Shield Generator. 05306_ Acquired Datajack. 05315_ Acquired Hammer. 05317_ Acquired Imp. Sensor Array. 05327_ Dropped Shield Generator. 05328_ Acquired Imp. Heat Sink. 05329_ Dropped Imp. Sensor Array. 05336_ Acquired Hacking Suite. 05343_ LEU/R|UDSTYYE0UYLQTBY 05358_ System corrupted: Component data lost. 05378_ System corrupted: Energy discharge (-55). 05383_ G-50 Soldier destroyed. 05385_ G-47 Trooper destroyed. 05386_ Destroyed Lgt. Nuclear Core. Map ----- +----------------------------------------------------+ | ?# #????????????????????????????### ## | | ?######+##### #######????????????###???????+ | | ??????# #???# "??????+ +???????# | | ??????# #???# ####+##????????????# #???????# ### | | ??????# #???# #??#!#??????????#+## #?+?????# #?? | | ###???# #??## #??# #??????????#!!#!#???????# #?? | | ""#???# #??#T #??# #??????????# "[+???????# #?? | | "##??# ##### ####*######?????####%######### #?? | | #??# " %+ !!!![* [#????????#[!%[ * " #?? | | #"########### [####=#### #????????#!######### #?? | | [ %######## #??#!#??#%#?######?#!#???????# #?? | | %[!*%=!!! #??#[#??#!#?# #?# #???????#^ #?? | | ! !!=######## #??#*#?##+### ###"##??????#^ #?? | | #"####??????# ####"### ######## #?? | | ! #????##### [ #?? | | "##????#" [ ! #?? | | ""#?????#"T"########### ## ## ###########?? | | ###?????#####???????### ## ## #???????????? | | ????????????????????# "g??????????? | | ????????????????????# "g??????????? | | ????????????????????# "g??????????? | | ????????????????????# "???????????? | | ????????????????????### ## ## #???????????? | | ????????????########### ## ## ###?????????? | | ????????????# g[* ^ ???????? | | ????????????# %=% @ ^ ???????? | | ????????????# #####;## ^ ###+????????? | | ????????????# ^#???# ### ##""""## ##???????????? | | ????????????#^ #???# #?# #?ssss?# ?????????????? | | ????????????# #???# #?# #?#+#??? ???????+?????? | | ???????????? #???# #?# #?# #??????????????????? | | ???????????## #???# #?# #?# #?????+????????????? | | ????????????# #???# #?# ### #??????????????????? | | +???+???????# #####"### ; #??????????????????? | | ????????????# #####?????????+????????? | | ????????????# #??????????????????????? | | ????????????# #####"######??????????????????????? | | ????????????# #???# #???????????????????????????+ | | ????????????# #???# #???????????????????????????? | | ?????????+??+ +??? #???????????????????????????? | | ????????????? ????###???????????????????????????+ | | ????????????? ??????????????????????????????????? | | ????????????? ??????????????????????????????????? | | ?????????????????????????????????????????????????? | | ?????????????????????????????????????????????????? | | ???????????????????????????????????????????+?????? | | ?????????????????????????????????????????????????? | | ?????????????????????????????????????????????????? | | ?????????????????????????????????????????????????? | | ???+?????????????????????????????????????????????? | +----------------------------------------------------+ Best States ------------- Heat Dissipation 45 Energy Generation 18 Energy Capacity 280 Matter Stores 300 Matter Capacity 300 Sight Range 16 Robot Scan Range 15 Terrain Scan Density 10 Armor Coverage 450 Propulsion Shielding 33 Evasion (%) 42 Targeting Accuracy 14 Particle Charging 15 Offensive Hacking 10 Item Schematics ----------------- Mak. Shrapnel Gun | -8/Materials | Scanalyzed Robot Schematics ------------------ None Fabricated ------------ Nothing Alien Tech Used ----------------- None Achievements -------------- None Challenges ------------ None Game ------ Seed FlyingAbsorptionOptics Manual? 0 Play Time 01:05:05 Cumulative 52.9 hours Start 2024.03.24 @ 06:21:43 End 2024.03.24 @ 07:27:03 Sessions 1 Manual Loads 0 Difficulty Rogue Special Mode None Game No. 43 Rogue 41 Adventurer 0 Explorer 2 Win Type - Total 0 Types 0/0/0/0/0/0/0/0/0 Lore% 16 Gallery% 30 Achievement% 20 Wizard Run 0 Options --------- Layout 1 ASCII 0 Keyboard 0 Movement Mouse Keybinds 0 Fullscreen 2 Font 48/Tamsyn Map View 50x35 Zoom Use 0% Tactical HUD 1 Map Filters NONE Filters NONE Steam 1 RUN: 45d7d7d6-37ec-424c-a240-d21c84260359